fUSD/lending_fUSD_20250208
["ID","MTS","AMOUNT","RATE_DAILY","PERIOD"]
[352301384,1739032249678,-524.37,0.00010541,2]
[352301385,1739032249689,-500.0,0.00010541,2]
[352301386,1739032249699,-500.0,0.00010541,2]
[352301387,1739032249710,-681.91,0.00010541,2]
[352301388,1739032249719,-500.0,0.00010541,2]
[352301389,1739032249729,-500.0,0.00010541,2]
[352301390,1739032249739,-647.0,0.00010541,2]
[352301391,1739032249748,-710.56,0.00010541,2]
[352301392,1739032249758,-500.0,0.00010541,2]
[352301393,1739032249768,-609.7,0.00010541,2]
[352301394,1739032249778,-500.0,0.00010541,2]
[352301395,1739032249788,-500.0,0.00010541,2]
[352301396,1739032249799,-605.68,0.00010541,2]
[352301397,1739032249809,-549.2,0.00010541,2]
[352301398,1739032249818,-500.0,0.00010541,2]
[352301399,1739032249828,-500.0,0.00010541,2]
[352301400,1739032249837,-738.52,0.00010541,2]
[352301401,1739032249847,-551.76,0.00010541,2]
[352301402,1739032249858,-500.0,0.00010541,2]
[352301403,1739032249869,-696.01,0.00010541,2]
[352301404,1739032249882,-500.0,0.00010541,2]
[352301405,1739032249892,-626.77,0.00010541,2]
[352301406,1739032249902,-500.0,0.00010541,2]
[352301407,1739032249912,-741.56,0.00010541,2]
[352301408,1739032249922,-500.0,0.00010541,2]
[352301409,1739032249932,-1599.9,0.00010541,2]
[352301410,1739032249942,-500.0,0.00010541,2]
[352301411,1739032249952,-699.1,0.00010541,2]
[352301412,1739032249962,-500.0,0.00010541,2]
[352301413,1739032249971,-500.0,0.00010541,2]
[352301414,1739032249981,-805.06,0.00010541,2]
[352301415,1739032249991,-500.0,0.00010541,2]
[352301416,1739032250001,-1718.5,0.00010541,2]
[352301417,1739032250010,-967.14,0.00010541,2]
[352301418,1739032250020,-1023.4,0.00010541,2]
[352301419,1739032250029,-1657.33,0.00010541,2]
[352301420,1739032250039,-500.0,0.00010541,2]
[352301421,1739032250049,-500.0,0.00010541,2]
[352301422,1739032250059,-712.21,0.00010541,2]
[352301423,1739032250070,-1320.76,0.00010541,2]
[352301424,1739032250080,-1905.97,0.00010541,2]
[352301425,1739032250089,-1224.71,0.00010541,2]
[352301426,1739032250099,-500.0,0.00010541,2]
[352301427,1739032250112,-500.0,0.00010541,2]
[352301428,1739032250122,-606.89,0.00010541,2]
[352301429,1739032250132,-500.0,0.00010541,2]
[352301430,1739032250142,-1330.25,0.00010541,2]
[352301431,1739032250152,-500.0,0.00010541,2]
[352301432,1739032250162,-689.46,0.00010541,2]
[352301433,1739032250172,-839.2,0.00010541,2]
[352301434,1739032250182,-500.0,0.00010541,2]
[352301435,1739032250192,-1766.35,0.00010541,2]
[352301436,1739032250202,-500.0,0.00010541,2]
[352301437,1739032250212,-500.0,0.00010541,2]
[352301438,1739032250221,-1494.3,0.00010541,2]
[352301439,1739032250230,-500.0,0.00010541,2]
[352301440,1739032250240,-500.0,0.00010541,2]
[352301441,1739032250249,-876.23,0.00010541,2]
[352301442,1739032250259,-554.07,0.00010541,2]
[352301443,1739032250269,-879.59,0.00010541,2]
[352301444,1739032250279,-500.0,0.00010541,2]
[352301445,1739032250289,-749.63,0.00010541,2]
[352301446,1739032250299,-1094.24,0.00010541,2]
[352301447,1739032250308,-546.23,0.00010541,2]
[352301448,1739032250318,-500.0,0.00010541,2]
[352301449,1739032250328,-547.94,0.00010541,2]
[352301450,1739032250338,-1048.86,0.00010541,2]
[352301451,1739032250347,-566.32,0.00010541,2]
[352301452,1739032250358,-4888.33,0.00010541,2]
[352301453,1739032250368,-605.63,0.00010541,2]
[352301454,1739032250378,-847.0,0.00010541,2]
[352301455,1739032250389,-1004.92,0.00010541,2]
[352301456,1739032250398,-500.0,0.00010541,2]
[352301457,1739032250408,-500.0,0.00010541,2]
[352301458,1739032250418,-500.0,0.00010541,2]
[352301459,1739032250428,-1493.5,0.00010541,2]
[352301460,1739032250438,-1003.45,0.00010541,2]
[352301461,1739032250447,-582.38,0.00010541,2]
[352301462,1739032250458,-1091.72,0.00010541,2]
[352301463,1739032250467,-500.0,0.00010541,2]
[352301464,1739032250478,-995.3,0.00010541,2]
[352301465,1739032250488,-500.0,0.00010543,2]
[352301466,1739032250499,-500.0,0.00010543,2]
[352301467,1739032250509,-545.28876114,0.00010543,2]
[352301468,1739032250519,-500.0,0.00010543,2]
[352301469,1739032250530,-500.0,0.00010543,2]
[352301470,1739032250540,-500.0,0.00010543,2]
[352301471,1739032250550,-500.0,0.00010543,2]
[352301472,1739032250560,-500.0,0.00010543,2]
[352301473,1739032250570,-500.0,0.00010543,2]
[352301474,1739032250580,-500.0,0.00010543,2]
[352301475,1739032250590,-500.0,0.00010543,2]
[352301476,1739032250600,-500.0,0.00010543,2]
[352301477,1739032250611,-500.0,0.00010543,2]
[352301478,1739032250621,-500.0,0.00010543,2]
[352301479,1739032250631,-646.39,0.00010543,2]
[352301480,1739032250641,-365.71015614,0.00010543,2]
[352301481,1739032250650,-500.0,0.00010543,2]
[352301482,1739032250660,-500.0,0.00010543,2]
[352301483,1739032250670,-500.0,0.00010543,2]
[352301484,1739032250680,-500.0,0.00010543,2]
[352301485,1739032250689,-500.0,0.00010544,2]
[352301486,1739032250700,-500.0,0.00010551,2]
[352301487,1739032250710,-500.0,0.00010551,2]
[352301488,1739032250720,-500.0,0.00010551,2]
[352301489,1739032250730,-500.0,0.00010551,2]
[352301490,1739032250741,-634.43104239,0.00010551,2]
[352301491,1739032250752,-500.0,0.00010551,2]
[352301492,1739032250958,-500.0,0.00010551,2]
[352301493,1739032251006,-500.0,0.00010551,2]
[352301494,1739032251015,-500.0,0.00010551,2]
[352301495,1739032251025,-564.2,0.00010551,2]
[352301496,1739032251035,-500.0,0.00010551,2]
[352301497,1739032251044,-500.0,0.00010551,2]
[352301498,1739032251054,-500.0,0.00010551,2]
[352301499,1739032251063,-500.0,0.00010551,2]
[352301500,1739032251074,-500.0,0.00010551,2]
[352301501,1739032251084,-500.0,0.00010551,2]
[352301502,1739032251093,-500.0,0.00010551,2]
[352301503,1739032251103,-570.00351629,0.00010551,2]
[352301504,1739032251116,-500.0,0.00010551,2]
[352301505,1739032251125,-500.0,0.00010551,2]
[352301506,1739032251135,-500.0,0.00010551,2]
[352301507,1739032251144,-500.0,0.00010551,2]
[352301508,1739032251154,-500.0,0.00010551,2]
[352301509,1739032251165,-500.0,0.00010551,2]
[352301510,1739032251176,-500.0,0.00010551,2]
[352301511,1739032251186,-500.0,0.00010551,2]
[352301512,1739032251196,-423.67012822,0.00010551,2]
[352301513,1739032251206,-500.0,0.00010551,2]
[352301514,1739032251215,-500.0,0.00010551,2]
[352301515,1739032251224,-500.0,0.00010551,2]
[352301516,1739032251235,-500.0,0.00010551,2]
[352301517,1739032251243,-500.0,0.00010551,2]
[352301518,1739032251253,-500.0,0.00010551,2]
[352301519,1739032251262,-500.0,0.00010551,2]
[352301520,1739032251271,-500.0,0.00010551,2]
[352301521,1739032251280,-226.71,0.00010551,2]
[352301522,1739032251290,-500.0,0.00010551,2]
[352301523,1739032251299,-259.4,0.00010551,2]
[352301524,1739032251309,-500.0,0.00010551,2]
[352301525,1739032251318,-500.0,0.00010551,2]
[352301526,1739032251327,-500.0,0.00010551,2]
[352301527,1739032251336,-500.0,0.00010551,2]
[352301528,1739032251346,-500.0,0.00010551,2]
[352301529,1739032251355,-500.0,0.00010551,2]
[352301530,1739032251366,-500.0,0.00010551,2]
[352301531,1739032251376,-500.0,0.00010551,2]
[352301532,1739032251385,-500.0,0.00010551,2]
[352301533,1739032251395,-500.0,0.00010551,2]
[352301534,1739032251405,-500.0,0.00010551,2]
[352301535,1739032251425,-500.0,0.00010551,2]
[352301536,1739032251435,-500.0,0.00010551,2]
[352301537,1739032251445,-500.0,0.00010551,2]
[352301538,1739032251455,-500.0,0.00010551,2]
[352301539,1739032251465,-500.0,0.00010551,2]
[352301540,1739032251477,-485.31214817,0.00010551,2]
[352301541,1739032251486,-500.0,0.00010551,2]
[352301542,1739032251495,-500.0,0.00010551,2]
[352301543,1739032251505,-500.0,0.00010551,2]
[352301544,1739032251514,-500.0,0.00010551,2]
[352301545,1739032251524,-500.0,0.00010551,2]
[352301546,1739032251534,-500.0,0.00010551,2]
[352301547,1739032251543,-500.0,0.00010551,2]
[352301548,1739032251552,-310.95751334,0.00010551,2]
[352301549,1739032251561,-500.0,0.00010551,2]
[352301550,1739032251571,-500.0,0.00010551,2]
[352301551,1739032251581,-500.0,0.00010551,2]
[352301552,1739032251590,-500.0,0.00010551,2]
[352301553,1739032251599,-500.0,0.00010551,2]
[352301554,1739032251608,-500.0,0.00010551,2]
[352301555,1739032251618,-500.0,0.00010551,2]
[352301556,1739032251627,-500.0,0.00010551,2]
[352301557,1739032251636,-500.0,0.00010551,2]
[352301558,1739032251646,-500.0,0.00010551,2]
[352301559,1739032251655,-500.0,0.00010551,2]
[352301560,1739032251664,-423.52,0.00010551,2]
[352301561,1739032251674,-500.0,0.00010551,2]
[352301562,1739032251683,-500.0,0.00010551,2]
[352301563,1739032251692,-500.0,0.00010551,2]
[352301564,1739032251701,-500.0,0.00010551,2]
[352301565,1739032251711,-500.0,0.00010551,2]
[352301566,1739032251721,-500.0,0.00010551,2]
[352301567,1739032251730,-500.0,0.00010551,2]
[352301568,1739032251739,-500.0,0.00010551,2]
[352301569,1739032251749,-500.0,0.00010551,2]
[352301570,1739032251758,-500.0,0.00010551,2]
[352301571,1739032251767,-720.42,0.00010551,2]
[352301572,1739032251776,-500.0,0.00010551,2]
[352301573,1739032251786,-500.0,0.00010551,2]
[352301574,1739032251796,-500.0,0.00010551,2]
[352301575,1739032251807,-500.0,0.00010551,2]
[352301576,1739032251817,-500.0,0.00010551,2]
[352301577,1739032251827,-500.0,0.00010551,2]
[352301578,1739032251837,-500.0,0.00010551,2]
[352301579,1739032251847,-500.0,0.00010551,2]
[352301580,1739032251857,-500.0,0.00010551,2]
[352301581,1739032251868,-500.0,0.00010551,2]
[352301582,1739032251878,-500.0,0.00010551,2]
[352301583,1739032251889,-500.0,0.00010551,2]
[352301584,1739032251899,-500.0,0.00010551,2]
[352301585,1739032251909,-500.0,0.00010551,2]
[352301586,1739032251918,-504.57665288,0.00010551,2]
[352301587,1739032251927,-500.0,0.00010551,2]
[352301588,1739032251937,-500.0,0.00010551,2]
[352301589,1739032251946,-500.0,0.00010551,2]
[352301590,1739032251956,-500.0,0.00010551,2]
[352301591,1739032251966,-500.0,0.00010551,2]
[352301592,1739032251976,-500.0,0.00010551,2]
[352301593,1739032251986,-500.0,0.00010551,2]
[352301594,1739032251995,-500.0,0.00010551,2]
[352301595,1739032252004,-500.0,0.00010551,2]
[352301596,1739032252014,-500.0,0.00010551,2]
[352301597,1739032252023,-500.0,0.00010551,2]
[352301598,1739032252033,-500.0,0.00010551,2]
[352301599,1739032252043,-500.0,0.00010551,2]
[352301600,1739032252052,-500.0,0.00010551,2]
[352301601,1739032252061,-500.0,0.00010551,2]
[352301602,1739032252071,-191.27405906,0.00010551,2]
[352301603,1739032252080,-500.0,0.00010551,2]
[352301604,1739032252089,-500.0,0.00010551,2]
[352301605,1739032252099,-500.0,0.00010551,2]
[352301606,1739032252109,-500.0,0.00010551,2]
[352301607,1739032252118,-500.0,0.00010551,2]
[352301608,1739032252128,-500.0,0.00010551,2]
[352301609,1739032252137,-169.02035021,0.00010551,2]
[352301610,1739032252148,-500.0,0.00010551,2]
[352301611,1739032252157,-500.0,0.00010551,2]
[352301612,1739032252167,-500.0,0.00010551,2]
[352301613,1739032252177,-500.0,0.00010551,2]
[352301614,1739032252186,-500.0,0.00010551,2]
[352301615,1739032252196,-500.0,0.00010551,2]
[352301616,1739032252206,-500.0,0.00010551,2]
[352301617,1739032252215,-500.0,0.00010551,2]
[352301618,1739032252225,-500.0,0.00010551,2]
[352301619,1739032252235,-500.0,0.00010551,2]
[352301620,1739032252245,-500.0,0.00010551,2]
[352301621,1739032252255,-500.0,0.00010551,2]
[352301622,1739032252265,-468.2188956,0.00010551,2]
[352301623,1739032252274,-500.0,0.00010551,2]
[352301624,1739032252284,-500.0,0.00010551,2]
[352301625,1739032252294,-510.14468661,0.00010551,2]
[352301626,1739032252303,-500.0,0.00010551,2]
[352301627,1739032252314,-500.0,0.00010551,2]
[352301628,1739032252323,-500.0,0.00010551,2]
[352301629,1739032252333,-500.0,0.00010551,2]
[352301630,1739032252342,-500.0,0.00010551,2]
[352301631,1739032252351,-500.0,0.00010551,2]
[352301632,1739032252361,-500.0,0.00010551,2]
[352301633,1739032252370,-500.0,0.00010551,2]
[352301634,1739032252380,-500.0,0.00010551,2]
[352301635,1739032252389,-513.78900713,0.00010551,2]
[352301636,1739032252399,-500.0,0.00010551,2]
[352301637,1739032252409,-500.0,0.00010551,2]
[352301638,1739032252418,-500.0,0.00010551,2]
[352301639,1739032252428,-500.0,0.00010551,2]
[352301640,1739032252438,-500.0,0.00010551,2]
[352301641,1739032252447,-500.0,0.00010551,2]
[352301642,1739032252457,-500.0,0.00010551,2]
[352301643,1739032252466,-500.0,0.00010551,2]
[352301644,1739032252475,-500.0,0.00010551,2]
[352301645,1739032252484,-500.0,0.00010551,2]
[352301646,1739032252494,-500.0,0.00010551,2]
[352301647,1739032252504,-500.0,0.00010551,2]
[352301648,1739032252514,-500.0,0.00010551,2]
[352301649,1739032252523,-500.0,0.00010551,2]
[352301650,1739032252533,-500.0,0.00010551,2]
[352301651,1739032252543,-500.0,0.00010551,2]
[352301652,1739032252552,-500.0,0.00010551,2]
[352301653,1739032252562,-500.0,0.00010551,2]
[352301654,1739032252571,-500.0,0.00010551,2]
[352301655,1739032252581,-500.0,0.00010551,2]
[352301656,1739032252590,-514.41276543,0.00010551,2]
[352301657,1739032252599,-500.0,0.00010551,2]
[352301658,1739032252609,-500.0,0.00010551,2]
[352301659,1739032252618,-500.0,0.00010551,2]
[352301660,1739032252628,-500.0,0.00010551,2]
[352301661,1739032252637,-500.0,0.00010551,2]
[352301662,1739032252646,-500.0,0.00010551,2]
[352301663,1739032252656,-500.0,0.00010551,2]
[352301664,1739032252665,-433.16786544,0.00010551,2]
[352301665,1739032252675,-500.0,0.00010551,2]
[352301666,1739032252686,-500.0,0.00010551,2]
[352301667,1739032252695,-500.0,0.00010551,2]
[352301668,1739032252705,-500.0,0.00010551,2]
[352301669,1739032252715,-500.0,0.00010551,2]
[352301670,1739032252726,-500.0,0.00010551,2]
[352301671,1739032252735,-500.0,0.00010551,2]
[352301672,1739032252745,-580.34666617,0.00010551,2]
[352301673,1739032252755,-500.0,0.00010551,2]
[352301674,1739032252764,-500.0,0.00010551,2]
[352301675,1739032252774,-500.0,0.00010551,2]
[352301676,1739032252785,-500.0,0.00010551,2]
[352301677,1739032252796,-500.0,0.00010551,2]
[352301678,1739032252808,-500.0,0.00010551,2]
[352301679,1739032252819,-500.0,0.00010551,2]
[352301680,1739032252829,-500.0,0.00010551,2]
[352301681,1739032252839,-500.0,0.00010551,2]
[352301682,1739032252850,-500.0,0.00010551,2]
[352301683,1739032252859,-500.0,0.00010551,2]
[352301684,1739032252868,-509.96755594,0.00010551,2]
[352301685,1739032252879,-962.87,0.00010551,2]
[352301686,1739032252888,-500.0,0.00010551,2]
[352301687,1739032252898,-500.0,0.00010551,2]
[352301688,1739032252907,-2239.32,0.00010551,2]
[352301689,1739032252916,-500.0,0.00010551,2]
[352301690,1739032252926,-4315.07,0.00010551,2]
[352301691,1739032252935,-667.09,0.00010551,2]
[352301692,1739032252944,-290.88887996,0.00010551,7]
[352301693,1739032252954,-828.7,0.00010551,2]
[352301694,1739032252963,-500.0,0.00010551,2]
[352301695,1739032252973,-500.0,0.00010551,2]
[352301696,1739032252982,-503.35240473,0.00010551,2]
[352301697,1739032252992,-500.0,0.00010551,2]
[352301698,1739032253001,-500.0,0.00010551,2]
[352301699,1739032253011,-500.0,0.00010551,2]
[352301700,1739032253020,-862.2,0.00010551,2]
[352301701,1739032253030,-500.0,0.00010551,2]
[352301702,1739032253039,-500.0,0.00010551,2]
[352301703,1739032253049,-500.0,0.00010551,2]
[352301704,1739032253059,-625.97,0.00010551,2]
[352301705,1739032253069,-500.0,0.00010551,2]
[352301706,1739032253079,-500.0,0.00010551,2]
[352301707,1739032253089,-1376.58,0.00010551,2]
[352301708,1739032253099,-500.0,0.00010551,2]
[352301709,1739032253110,-500.0,0.00010551,2]
[352301710,1739032253119,-500.0,0.00010551,2]
[352301711,1739032253129,-511.89184812,0.00010551,2]
[352301712,1739032253138,-500.0,0.00010551,2]
[352301713,1739032253148,-500.0,0.00010551,2]
[352301714,1739032253157,-500.0,0.00010551,2]
[352301715,1739032253167,-500.0,0.00010551,2]
[352301716,1739032253176,-966.2,0.00010551,2]
[352301717,1739032253185,-500.0,0.00010551,2]
[352301718,1739032253195,-500.0,0.00010551,2]
[352301719,1739032253205,-1175.2,0.00010551,2]
[352301720,1739032253215,-158.14684259,0.00010551,2]
[352301721,1739032253224,-500.0,0.00010551,2]
[352301722,1739032253234,-500.0,0.00010551,2]
[352301723,1739032253243,-1000.0,0.00010551,2]
[352301724,1739032253253,-500.0,0.00010551,2]
[352301725,1739032253263,-805.36,0.00010551,2]
[352301726,1739032253272,-500.0,0.00010551,2]
[352301727,1739032253281,-500.0,0.00010551,2]
[352301728,1739032253291,-500.0,0.00010551,2]
[352301729,1739032253300,-500.0,0.00010551,2]
[352301730,1739032253365,-528.58,0.00010551,2]
[352301731,1739032253375,-1305.9,0.00010551,2]
[352301732,1739032253385,-500.0,0.00010551,2]
[352301733,1739032253394,-500.0,0.00010551,2]
[352301734,1739032253403,-500.0,0.00010551,2]
[352301735,1739032253413,-500.0,0.00010551,2]
[352301736,1739032253422,-1259.69,0.00010551,2]
[352301737,1739032253432,-500.0,0.00010551,2]
[352301738,1739032253442,-500.0,0.00010551,2]
[352301739,1739032253452,-500.0,0.00010551,2]
[352301740,1739032253461,-500.0,0.00010551,2]
[352301741,1739032253471,-500.0,0.00010551,2]
[352301742,1739032253480,-500.0,0.00010551,2]
[352301743,1739032253490,-500.0,0.00010551,2]
[352301744,1739032253499,-500.0,0.00010551,2]
[352301745,1739032253508,-500.0,0.00010551,2]
[352301746,1739032253517,-500.0,0.00010551,2]
[352301747,1739032253526,-500.0,0.00010551,2]
[352301748,1739032253535,-500.0,0.00010551,2]
[352301749,1739032253544,-500.0,0.00010551,2]
[352301750,1739032253554,-500.0,0.00010551,2]
[352301751,1739032253564,-500.0,0.00010551,2]
[352301752,1739032253575,-150.0,0.00010552,2]
[352301753,1739032253585,-1155.77154755,0.00010594,2]
[352301754,1739032253595,-700.0,0.000106,3]
[352301755,1739032253605,-4113.87340642,0.00010604,2]
[352301756,1739032253616,-150.0,0.0001061,2]
[352301757,1739032253626,-368951.77814391,0.00010614,2]
[352301758,1739032253635,-527.8,0.00010633,2]
[352301759,1739032253644,-1000.0,0.00010639,2]
[352301760,1739032253653,-213.0,0.0001064,2]
[352301761,1739032253662,-543.30528378,0.00010659,2]
[352301762,1739032253671,-1155.77154755,0.00010671,2]
[352301763,1739032253680,-860.47,0.00010676,2]
[352301764,1739032253690,-796.29,0.00010676,2]
[352301765,1739032253700,-535.1,0.00010676,2]
[352301766,1739032253709,-684.28,0.00010676,2]
[352301767,1739032253719,-1691.91,0.00010676,2]
[352301768,1739032253728,-1572.96,0.00010676,2]
[352301769,1739032253737,-1278.79,0.00010676,2]
[352301770,1739032253746,-1126.04,0.00010676,2]
[352301771,1739032253755,-1172.7,0.00010676,2]
[352301772,1739032253765,-581.4,0.00010676,2]
[352301773,1739032253775,-500.0,0.00010676,2]
[352301774,1739032253784,-793.87,0.00010676,2]
[352301775,1739032253795,-1161.17,0.00010676,2]
[352301776,1739032253806,-1743.33,0.00010676,2]
[352301777,1739032253815,-1788.87,0.00010676,2]
[352301778,1739032253825,-650.47,0.00010676,2]
[352301779,1739032253834,-773.57,0.00010676,2]
[352301780,1739032253845,-500.0,0.00010676,2]
[352301781,1739032253855,-816.93,0.00010676,2]
[352301782,1739032253865,-2146.12,0.00010676,2]
[352301783,1739032253876,-500.0,0.00010676,2]
[352301784,1739032253886,-500.0,0.00010676,2]
[352301785,1739032253895,-501.15305456,0.00010676,2]
[352301786,1739032253905,-500.0,0.00010676,2]
[352301787,1739032253915,-500.0,0.00010676,2]
[352301788,1739032253925,-500.0,0.00010676,2]
[352301789,1739032253934,-959.01,0.00010676,2]
[352301790,1739032253944,-500.0,0.00010676,2]
[352301791,1739032253954,-842.46,0.00010676,2]
[352301792,1739032253963,-769.21,0.00010676,2]
[352301793,1739032253973,-500.0,0.00010676,2]
[352301794,1739032253982,-503.46165709,0.00010676,2]
[352301795,1739032253992,-500.0,0.00010676,2]
[352301796,1739032254002,-500.0,0.00010676,2]
[352301797,1739032254012,-517.87,0.00010676,2]
[352301798,1739032254021,-500.0,0.00010676,2]
[352301799,1739032254031,-500.0,0.00010676,2]
[352301800,1739032254040,-500.0,0.00010676,2]
[352301801,1739032254049,-500.0,0.00010676,2]
[352301802,1739032254059,-1393.18,0.00010677,2]
[352301803,1739032254068,-761.3,0.00010677,2]
[352301804,1739032254077,-1783.75,0.00010677,2]
[352301805,1739032254087,-1602.73,0.00010677,2]
[352301806,1739032254096,-825.22,0.00010677,2]
[352301807,1739032254106,-1270.45,0.00010677,2]
[352301808,1739032254116,-1628.959289,0.00010677,2]
[352301809,1739032254125,-713.15,0.00010677,2]
[352301810,1739032254135,-500.0,0.00010677,2]
[352301811,1739032254144,-651.39,0.00010677,2]
[352301812,1739032254154,-803.8,0.00010677,2]
[352301813,1739032254163,-549.87,0.00010677,2]
[352301814,1739032254172,-814.46,0.00010677,2]
[352301815,1739032254182,-1038.71,0.00010677,2]
[352301816,1739032254192,-1370.029514,0.00010677,2]
[352301817,1739032254201,-500.0,0.00010677,2]
[352301818,1739032254210,-727.77,0.00010677,2]
[352301819,1739032254220,-1337.02,0.00010677,2]
[352301820,1739032254230,-1078.67,0.00010677,2]
[352301821,1739032254240,-1338.19,0.00010677,2]
[352301822,1739032254249,-897.99,0.00010677,2]
[352301823,1739032254259,-780.21,0.00010677,2]
[352301824,1739032254268,-3300.87,0.00010677,2]
[352301825,1739032254277,-1371.3,0.00010677,2]
[352301826,1739032254287,-806.2,0.00010677,2]
[352301827,1739032254296,-1155.78,0.00010677,2]
[352301828,1739032254305,-1548.09,0.00010677,2]
[352301829,1739032254315,-500.0,0.00010677,2]
[352301830,1739032254324,-2198.17,0.00010677,2]
[352301831,1739032254335,-1148.28,0.00010677,2]
[352301832,1739032254344,-1438.12,0.00010677,2]
[352301833,1739032254353,-1443.49,0.00010677,2]
[352301834,1739032254362,-160.41012,0.00010677,2]
[352301835,1739032254371,-776.45,0.00010677,2]
[352301836,1739032254380,-154.363056,0.00010677,2]
[352301837,1739032254390,-678.86,0.00010678,2]
[352301838,1739032254399,-617.3,0.00010678,2]
[352301839,1739032254409,-500.0,0.00010678,2]
[352301840,1739032254418,-500.0,0.00010678,2]
[352301841,1739032254427,-930.87,0.00010678,2]
[352301842,1739032254437,-500.0,0.00010678,2]
[352301843,1739032254446,-471.96395043,0.00010678,2]
[352301844,1739032254456,-691.29,0.00010678,2]
[352301845,1739032254465,-500.0,0.00010678,2]
[352301846,1739032254474,-500.0,0.00010678,2]
[352301847,1739032254483,-500.0,0.00010678,2]
[352301848,1739032254492,-500.0,0.00010678,2]
[352301849,1739032254501,-500.0,0.00010678,2]
[352301850,1739032254510,-500.0,0.00010678,2]
[352301851,1739032254520,-500.0,0.00010678,2]
[352301852,1739032254529,-519.79,0.00010678,2]
[352301853,1739032254539,-500.0,0.00010678,2]
[352301854,1739032254548,-500.0,0.00010678,2]
[352301855,1739032254557,-500.0,0.00010678,2]
[352301856,1739032254566,-500.0,0.00010678,2]
[352301857,1739032254575,-669.71,0.00010678,2]
[352301858,1739032254584,-500.0,0.00010678,2]
[352301859,1739032254594,-500.0,0.00010678,2]
[352301860,1739032254603,-500.0,0.00010678,2]
[352301861,1739032254614,-500.0,0.00010678,2]
[352301862,1739032254623,-500.0,0.00010678,2]
[352301863,1739032254632,-500.0,0.00010678,2]
[352301864,1739032254641,-763.76,0.00010678,2]
[352301865,1739032254650,-500.0,0.00010678,2]
[352301866,1739032254659,-500.0,0.00010678,2]
[352301867,1739032254669,-500.0,0.00010678,2]
[352301868,1739032254677,-879.98,0.00010678,2]
[352301869,1739032254687,-500.0,0.00010678,2]
[352301870,1739032254696,-207.66,0.00010678,2]
[352301871,1739032254706,-500.0,0.00010678,2]
[352301872,1739032254715,-752.67,0.00010678,2]
[352301873,1739032254726,-500.0,0.00010678,2]
[352301874,1739032254735,-500.0,0.00010678,2]
[352301875,1739032254744,-749.49,0.00010678,2]
[352301876,1739032254754,-500.0,0.00010678,2]
[352301877,1739032254763,-500.0,0.00010678,2]
[352301878,1739032254772,-500.0,0.00010678,2]
[352301879,1739032254782,-384.07164891,0.00010678,2]
[352301880,1739032254791,-852.34,0.00010678,2]
[352301881,1739032254803,-619.2,0.00010678,2]
[352301882,1739032254812,-524.37,0.00010678,2]
[352301883,1739032254821,-500.0,0.00010678,2]